[Event "Early-Titled-Tuesday-Blitz-April-16-2024"]
[Site "Chess.com"]
[Date "2024.04.16"]
[Round "11"]
[White "Matibar"]
[Black "xasid81"]
[Result "1-0"]
[WhiteElo "2812"]
[BlackElo "2631"]
[TimeControl "180+1"]
[EndTime "10:10:53 PDT"]
[Termination "Matibar won on time"]

1. e4 {[%clk 0:03:00.9]} 1... e6 {[%clk 0:02:56.2]} 2. d4 {[%clk 0:03:00.3]}
2... d5 {[%clk 0:02:56.2]} 3. exd5 {[%clk 0:03:00.4]} 3... exd5 {[%clk 0:02:56]}
4. h3 {[%clk 0:03:01.3]} 4... Bd6 {[%clk 0:02:53.6]} 5. Nf3 {[%clk 0:03:01.3]}
5... Ne7 {[%clk 0:02:51.9]} 6. c4 {[%clk 0:03:01.2]} 6... c6 {[%clk 0:02:50.5]}
7. c5 {[%clk 0:03:00]} 7... Bc7 {[%clk 0:02:50.6]} 8. Bd3 {[%clk 0:02:59.8]}
8... Bf5 {[%clk 0:02:50.3]} 9. O-O {[%clk 0:02:59.7]} 9... O-O {[%clk
0:02:49.8]} 10. Nc3 {[%clk 0:02:59]} 10... Nd7 {[%clk 0:02:49.1]} 11. b4 {[%clk
0:02:58.7]} 11... a6 {[%clk 0:02:47.4]} 12. a4 {[%clk 0:02:58]} 12... Re8 {[%clk
0:02:47]} 13. Rb1 {[%clk 0:02:57.5]} 13... Nf8 {[%clk 0:02:42.4]} 14. Bg5 {[%clk
0:02:53.3]} 14... f6 {[%clk 0:02:40.6]} 15. Be3 {[%clk 0:02:53]} 15... Qd7
{[%clk 0:02:37.4]} 16. Bxf5 {[%clk 0:02:50.2]} 16... Nxf5 {[%clk 0:02:37]} 17.
Qd3 {[%clk 0:02:50.4]} 17... Ng6 {[%clk 0:02:30.6]} 18. Bd2 {[%clk 0:02:48.8]}
18... Bf4 {[%clk 0:02:11.9]} 19. b5 {[%clk 0:02:45.6]} 19... axb5 {[%clk
0:02:10.9]} 20. axb5 {[%clk 0:02:45.6]} 20... Bxd2 {[%clk 0:02:03.5]} 21. Qxd2
{[%clk 0:02:44.6]} 21... Nfh4 {[%clk 0:01:57.2]} 22. Nxh4 {[%clk 0:02:41.7]}
22... Nxh4 {[%clk 0:01:58.1]} 23. Qf4 {[%clk 0:02:07.3]} 23... Nf5 {[%clk
0:01:51.6]} 24. Rfe1 {[%clk 0:02:01.3]} 24... Rxe1+ {[%clk 0:01:49.6]} 25. Rxe1
{[%clk 0:02:02.2]} 25... cxb5 {[%clk 0:01:43]} 26. Nxb5 {[%clk 0:01:52]} 26...
g5 {[%clk 0:01:38.4]} 27. Qf3 {[%clk 0:01:51.7]} 27... Rf8 {[%clk 0:01:12.1]}
28. Nd6 {[%clk 0:01:44.3]} 28... Nxd6 {[%clk 0:01:05.9]} 29. Qxd5+ {[%clk
0:01:43.9]} 29... Kh8 {[%clk 0:00:59.7]} 30. cxd6 {[%clk 0:01:42.1]} 30... Rf7
{[%clk 0:00:54.9]} 31. Re6 {[%clk 0:01:37]} 31... Kg7 {[%clk 0:00:53.9]} 32. Qe4
{[%clk 0:01:36.9]} 32... Qd8 {[%clk 0:00:46.2]} 33. d5 {[%clk 0:01:34.5]} 33...
h6 {[%clk 0:00:43]} 34. h4 {[%clk 0:01:33.7]} 34... Qb6 {[%clk 0:00:37]} 35. h5
{[%clk 0:01:31.5]} 35... f5 {[%clk 0:00:24.2]} 36. Qe5+ {[%clk 0:01:23.5]} 36...
Kh7 {[%clk 0:00:23.4]} 37. Re8 {[%clk 0:01:20.6]} 37... Rg7 {[%clk 0:00:02.4]}
38. d7 {[%clk 0:01:20.1]} 38... Qb1+ {[%clk 0:00:01.2]} 39. Kh2 {[%clk
0:01:19.7]} 1-0

[Event "Early-Titled-Tuesday-Blitz-April-16-2024"]
[Site "Chess.com"]
[Date "2024.04.16"]
[Round "11"]
[White "Dinosaurio_1975"]
[Black "Smoking_Crow"]
[Result "0-1"]
[WhiteElo "2586"]
[BlackElo "2686"]
[TimeControl "180+1"]
[EndTime "10:10:53 PDT"]
[Termination "Smoking_Crow won on time"]

1. e4 {[%clk 0:03:00.9]} 1... e5 {[%clk 0:02:58]} 2. Nf3 {[%clk 0:03:00.7]} 2...
Nc6 {[%clk 0:02:57.9]} 3. Bc4 {[%clk 0:02:58.1]} 3... Nf6 {[%clk 0:02:57.9]} 4.
d3 {[%clk 0:02:58.1]} 4... Bc5 {[%clk 0:02:57.7]} 5. Be3 {[%clk 0:02:58.6]} 5...
d6 {[%clk 0:02:57.2]} 6. Bxc5 {[%clk 0:02:57.9]} 6... dxc5 {[%clk 0:02:58.1]} 7.
Bb5 {[%clk 0:02:58.7]} 7... Nd7 {[%clk 0:02:52.7]} 8. Bxc6 {[%clk 0:02:57.6]}
8... bxc6 {[%clk 0:02:53.6]} 9. Nbd2 {[%clk 0:02:56.6]} 9... O-O {[%clk
0:02:53.7]} 10. O-O {[%clk 0:02:56.2]} 10... f6 {[%clk 0:02:54]} 11. Nc4 {[%clk
0:02:44.6]} 11... Qe7 {[%clk 0:02:53.2]} 12. Nfd2 {[%clk 0:02:43.8]} 12... Rd8
{[%clk 0:02:52.5]} 13. a4 {[%clk 0:02:41.9]} 13... Nf8 {[%clk 0:02:51.9]} 14.
Qe1 {[%clk 0:02:38.4]} 14... Ne6 {[%clk 0:02:51.7]} 15. Nb3 {[%clk 0:02:35.6]}
15... Nd4 {[%clk 0:02:49.6]} 16. Nxd4 {[%clk 0:02:17.4]} 16... cxd4 {[%clk
0:02:50.5]} 17. Qa5 {[%clk 0:02:17]} 17... Be6 {[%clk 0:02:48.8]} 18. Nd2 {[%clk
0:02:07.2]} 18... Rdb8 {[%clk 0:02:46.5]} 19. b3 {[%clk 0:02:03.3]} 19... c5
{[%clk 0:02:45.8]} 20. f4 {[%clk 0:02:02.1]} 20... exf4 {[%clk 0:02:45.6]} 21.
Rxf4 {[%clk 0:02:00.1]} 21... Qd6 {[%clk 0:02:45.8]} 22. Raf1 {[%clk 0:01:58.9]}
22... Rb4 {[%clk 0:02:45.1]} 23. R4f2 {[%clk 0:01:26.1]} 23... Qb6 {[%clk
0:02:43.5]} 24. Qxb6 {[%clk 0:01:24.7]} 24... axb6 {[%clk 0:02:44.4]} 25. e5
{[%clk 0:01:23.2]} 25... f5 {[%clk 0:02:44]} 26. Nf3 {[%clk 0:01:05.6]} 26... g6
{[%clk 0:02:42.8]} 27. Ng5 {[%clk 0:01:05.5]} 27... Bd5 {[%clk 0:02:42]} 28. g4
{[%clk 0:01:04.2]} 28... fxg4 {[%clk 0:02:38.5]} 29. e6 {[%clk 0:00:44.3]} 29...
Re8 {[%clk 0:02:37]} 30. Rf6 {[%clk 0:00:26.8]} 30... b5 {[%clk 0:02:32.6]} 31.
a5 {[%clk 0:00:27]} 31... c4 {[%clk 0:02:31.7]} 32. bxc4 {[%clk 0:00:26.8]}
32... bxc4 {[%clk 0:02:30.5]} 33. Rf7 {[%clk 0:00:22.4]} 33... cxd3 {[%clk
0:02:23.6]} 34. cxd3 {[%clk 0:00:21.6]} 34... Rb2 {[%clk 0:02:20.4]} 35. Ne4
{[%clk 0:00:16]} 35... Bxe4 {[%clk 0:02:18.9]} 36. dxe4 {[%clk 0:00:15.9]} 36...
Rxe6 {[%clk 0:02:18.3]} 37. Rxc7 {[%clk 0:00:15.4]} 37... Rxe4 {[%clk
0:02:16.9]} 38. Rfc1 {[%clk 0:00:08.5]} 38... Ree2 {[%clk 0:02:16.6]} 39. Rd7
{[%clk 0:00:08.7]} 39... Rg2+ {[%clk 0:02:16.2]} 40. Kf1 {[%clk 0:00:09.2]}
40... Rbf2+ {[%clk 0:02:13.6]} 41. Ke1 {[%clk 0:00:09.5]} 41... Re2+ {[%clk
0:02:11.2]} 42. Kf1 {[%clk 0:00:09.7]} 42... Ref2+ {[%clk 0:02:08]} 43. Ke1
{[%clk 0:00:10]} 43... Rg1+ {[%clk 0:02:08.7]} 44. Kxf2 {[%clk 0:00:10.1]} 44...
Rxc1 {[%clk 0:02:09.6]} 45. Rxd4 {[%clk 0:00:10.4]} 45... h5 {[%clk 0:02:06.5]}
46. Kg3 {[%clk 0:00:10.4]} 46... Ra1 {[%clk 0:02:05.4]} 47. Rd5 {[%clk
0:00:08.6]} 47... Kg7 {[%clk 0:02:05.6]} 48. Rb5 {[%clk 0:00:07.8]} 48... Kh6
{[%clk 0:02:05.4]} 49. Rc5 {[%clk 0:00:03.4]} 49... Ra3+ {[%clk 0:02:05.5]} 50.
Kg2 {[%clk 0:00:03.7]} 50... h4 {[%clk 0:02:05.1]} 51. Rc4 {[%clk 0:00:04.1]}
51... Kh5 {[%clk 0:02:05.1]} 52. Rc5+ {[%clk 0:00:04]} 52... g5 {[%clk
0:02:05.7]} 53. Rb5 {[%clk 0:00:03]} 53... Ra2+ {[%clk 0:02:05.6]} 54. Kg1
{[%clk 0:00:03]} 54... g3 {[%clk 0:02:06.2]} 55. hxg3 {[%clk 0:00:02.9]} 55...
h3 {[%clk 0:02:06.8]} 0-1

[Event "Early-Titled-Tuesday-Blitz-April-16-2024"]
[Site "Chess.com"]
[Date "2024.04.16"]
[Round "11"]
[White "esrosenberg"]
[Black "stratacticos"]
[Result "1-0"]
[WhiteElo "2348"]
[BlackElo "1893"]
[TimeControl "180+1"]
[EndTime "10:10:57 PDT"]
[Termination "esrosenberg won by resignation"]

1. d4 {[%clk 0:03:00.9]} 1... Nf6 {[%clk 0:02:47.5]} 2. Nf3 {[%clk 0:02:54.8]}
2... g6 {[%clk 0:02:46.8]} 3. Nc3 {[%clk 0:02:54.1]} 3... c5 {[%clk 0:02:45.9]}
4. d5 {[%clk 0:02:46.8]} 4... Bg7 {[%clk 0:02:45.7]} 5. e4 {[%clk 0:02:46.5]}
5... O-O {[%clk 0:02:45.6]} 6. e5 {[%clk 0:02:46]} 6... Ne8 {[%clk 0:02:45.3]}
7. h4 {[%clk 0:02:45.6]} 7... h5 {[%clk 0:02:43.7]} 8. g4 {[%clk 0:02:44.9]}
8... hxg4 {[%clk 0:02:41.4]} 9. Ng5 {[%clk 0:02:45.5]} 9... d6 {[%clk
0:02:33.3]} 10. e6 {[%clk 0:02:44.3]} 10... f5 {[%clk 0:02:30.6]} 11. h5 {[%clk
0:02:29.5]} 11... gxh5 {[%clk 0:02:30.1]} 12. Rxh5 {[%clk 0:02:28.2]} 12... Nf6
{[%clk 0:02:31]} 13. Rh1 {[%clk 0:02:10.4]} 13... Qe8 {[%clk 0:02:29.9]} 14. Nf7
{[%clk 0:02:04.3]} 14... Rxf7 {[%clk 0:02:29.6]} 15. exf7+ {[%clk 0:02:05.2]}
15... Qxf7 {[%clk 0:02:29.5]} 16. Bf4 {[%clk 0:01:58.7]} 16... Nbd7 {[%clk
0:02:20.8]} 17. Qd2 {[%clk 0:01:57.1]} 17... Ne5 {[%clk 0:02:17.3]} 18. O-O-O
{[%clk 0:01:57.1]} 18... Qg6 {[%clk 0:02:02.8]} 19. Kb1 {[%clk 0:01:55.5]} 19...
Nh5 {[%clk 0:01:51.1]} 20. Bxe5 {[%clk 0:01:39.6]} 20... Bxe5 {[%clk 0:01:44]}
21. Bd3 {[%clk 0:01:40.3]} 21... Bd7 {[%clk 0:01:42.8]} 22. Ne2 {[%clk 0:01:28]}
22... b5 {[%clk 0:01:37.2]} 23. c3 {[%clk 0:01:24.7]} 23... Rb8 {[%clk
0:01:24.8]} 24. Ng3 {[%clk 0:01:24.4]} 24... Bf4 {[%clk 0:00:51.6]} 25. Qe2
{[%clk 0:01:19.3]} 25... Bxg3 {[%clk 0:00:47]} 26. fxg3 {[%clk 0:01:20.2]} 26...
Nxg3 {[%clk 0:00:45.9]} 27. Qxe7 {[%clk 0:01:20.8]} 27... Nxh1 {[%clk
0:00:44.5]} 28. Rxh1 {[%clk 0:01:16.7]} 28... Qg7 {[%clk 0:00:37.7]} 29. Qxd6
{[%clk 0:01:14.1]} 29... c4 {[%clk 0:00:34.9]} 30. Qxb8+ {[%clk 0:01:13.7]}
30... Kf7 {[%clk 0:00:20.9]} 31. Bc2 {[%clk 0:01:13.2]} 31... g3 {[%clk
0:00:16.7]} 32. Qf4 {[%clk 0:01:04.3]} 32... Qg4 {[%clk 0:00:08.9]} 33. Qxg4
{[%clk 0:01:01.5]} 33... fxg4 {[%clk 0:00:08.5]} 34. Rg1 {[%clk 0:01:02.1]} 1-0

[Event "Early-Titled-Tuesday-Blitz-April-16-2024"]
[Site "Chess.com"]
[Date "2024.04.16"]
[Round "11"]
[White "Yan_Dyomin2010"]
[Black "masterofpuppets2"]
[Result "1-0"]
[WhiteElo "2627"]
[BlackElo "2472"]
[TimeControl "180+1"]
[EndTime "10:10:58 PDT"]
[Termination "Yan_Dyomin2010 won by resignation"]

1. e4 {[%clk 0:03:00.9]} 1... e5 {[%clk 0:03:00.1]} 2. Nc3 {[%clk 0:02:58.9]}
2... Nf6 {[%clk 0:02:59.2]} 3. d4 {[%clk 0:02:59.2]} 3... exd4 {[%clk
0:02:58.9]} 4. Qxd4 {[%clk 0:03:00.1]} 4... Nc6 {[%clk 0:02:58.2]} 5. Qd3 {[%clk
0:03:00.2]} 5... Bb4 {[%clk 0:02:57.3]} 6. Bd2 {[%clk 0:02:59.8]} 6... O-O
{[%clk 0:02:56.2]} 7. O-O-O {[%clk 0:02:59.8]} 7... Re8 {[%clk 0:02:54.6]} 8.
Nge2 {[%clk 0:02:59.9]} 8... Ne5 {[%clk 0:02:43.7]} 9. Qg3 {[%clk 0:02:56.7]}
9... Nh5 {[%clk 0:02:30.6]} 10. Qh3 {[%clk 0:02:48]} 10... g6 {[%clk 0:02:30.7]}
11. g4 {[%clk 0:02:41]} 11... d6 {[%clk 0:02:26.9]} 12. f3 {[%clk 0:02:40.5]}
12... Nc4 {[%clk 0:01:55.5]} 13. Bh6 {[%clk 0:02:30.3]} 13... Bc5 {[%clk
0:01:55.6]} 14. Nd4 {[%clk 0:02:22]} 14... Bxd4 {[%clk 0:01:36.7]} 15. Rxd4
{[%clk 0:02:22.9]} 15... Ne5 {[%clk 0:01:34.8]} 16. Qg2 {[%clk 0:02:19.8]} 16...
Ng7 {[%clk 0:01:33.1]} 17. Be2 {[%clk 0:02:18.4]} 17... a6 {[%clk 0:01:30.7]}
18. h4 {[%clk 0:02:17.5]} 18... b5 {[%clk 0:01:27.7]} 19. Nd5 {[%clk 0:02:13.5]}
19... Bb7 {[%clk 0:01:18.6]} 20. Bg5 {[%clk 0:02:13.3]} 20... Qc8 {[%clk
0:01:13]} 21. Nf6+ {[%clk 0:02:12.5]} 21... Kh8 {[%clk 0:01:13.7]} 22. Nxe8
{[%clk 0:02:13.4]} 22... Qxe8 {[%clk 0:01:14.2]} 23. h5 {[%clk 0:02:11.4]} 23...
Kg8 {[%clk 0:01:07.6]} 24. hxg6 {[%clk 0:02:08.6]} 24... Nxg6 {[%clk 0:00:53.8]}
25. Qh3 {[%clk 0:02:05.5]} 25... Qe5 {[%clk 0:00:49.5]} 26. Qxh7+ {[%clk
0:02:03.3]} 26... Kf8 {[%clk 0:00:49.7]} 27. Be3 {[%clk 0:02:01.7]} 27... Ne6
{[%clk 0:00:41.7]} 28. Rdd1 {[%clk 0:01:55.1]} 28... Ke7 {[%clk 0:00:41.7]} 29.
Qh2 {[%clk 0:01:53.8]} 29... Nef4 {[%clk 0:00:39.3]} 30. Bd3 {[%clk 0:01:38]}
30... c5 {[%clk 0:00:36.6]} 31. Qd2 {[%clk 0:01:34.7]} 31... Bc6 {[%clk
0:00:27.9]} 32. Bf1 {[%clk 0:01:29.9]} 32... a5 {[%clk 0:00:27.6]} 33. Rh5
{[%clk 0:01:28.9]} 33... Nxh5 {[%clk 0:00:24.4]} 34. gxh5 {[%clk 0:01:29.8]}
34... Nf8 {[%clk 0:00:05.7]} 35. Bf4 {[%clk 0:01:26.9]} 35... Qe6 {[%clk
0:00:06.1]} 36. Bxd6+ {[%clk 0:01:26.5]} 36... Ke8 {[%clk 0:00:06.6]} 37. Bxc5
{[%clk 0:01:25.2]} 37... Nd7 {[%clk 0:00:06.8]} 38. Bd4 {[%clk 0:01:25]} 38...
f6 {[%clk 0:00:06.8]} 39. h6 {[%clk 0:01:25.1]} 39... Kf7 {[%clk 0:00:06.8]} 40.
h7 {[%clk 0:01:23.2]} 40... Rh8 {[%clk 0:00:06.9]} 41. b3 {[%clk 0:01:22.2]}
41... Rxh7 {[%clk 0:00:06.9]} 42. a4 {[%clk 0:01:21.5]} 42... b4 {[%clk
0:00:06.9]} 43. Bc4 {[%clk 0:01:21.5]} 1-0

[Event "Early-Titled-Tuesday-Blitz-April-16-2024"]
[Site "Chess.com"]
[Date "2024.04.16"]
[Round "11"]
[White "Revan_2002"]
[Black "dvglko"]
[Result "0-1"]
[WhiteElo "2712"]
[BlackElo "2526"]
[TimeControl "180+1"]
[EndTime "10:11:00 PDT"]
[Termination "dvglko won by resignation"]

1. d4 {[%clk 0:03:00.9]} 1... Nf6 {[%clk 0:02:58]} 2. c4 {[%clk 0:03:01.3]} 2...
e6 {[%clk 0:02:57.5]} 3. Nc3 {[%clk 0:03:00.7]} 3... Bb4 {[%clk 0:02:56.7]} 4.
Nf3 {[%clk 0:03:01.3]} 4... O-O {[%clk 0:02:52.7]} 5. Bg5 {[%clk 0:03:01.8]}
5... c5 {[%clk 0:02:50.6]} 6. e3 {[%clk 0:03:01.5]} 6... cxd4 {[%clk 0:02:49.4]}
7. Nxd4 {[%clk 0:02:59.3]} 7... Bxc3+ {[%clk 0:02:36.4]} 8. bxc3 {[%clk
0:02:59.1]} 8... Qa5 {[%clk 0:02:36.7]} 9. Bxf6 {[%clk 0:02:57.6]} 9... Qxc3+
{[%clk 0:02:35.1]} 10. Ke2 {[%clk 0:02:58.2]} 10... gxf6 {[%clk 0:02:17]} 11.
Rc1 {[%clk 0:02:57.7]} 11... Qb2+ {[%clk 0:02:16.5]} 12. Rc2 {[%clk 0:02:56.7]}
12... Qb6 {[%clk 0:02:14.4]} 13. c5 {[%clk 0:02:55.7]} 13... Qa5 {[%clk
0:02:04.9]} 14. h4 {[%clk 0:02:46.2]} 14... b6 {[%clk 0:02:00.6]} 15. f4 {[%clk
0:02:34.4]} 15... Ba6+ {[%clk 0:01:58.4]} 16. Kf2 {[%clk 0:02:34.5]} 16... bxc5
{[%clk 0:01:55.5]} 17. Nb3 {[%clk 0:02:34.7]} 17... Qb6 {[%clk 0:01:51.3]} 18.
Rh3 {[%clk 0:02:16.3]} 18... Kh8 {[%clk 0:01:42.8]} 19. Bxa6 {[%clk 0:01:36.9]}
19... Nxa6 {[%clk 0:01:41.4]} 20. Qxd7 {[%clk 0:01:36.4]} 20... Nb4 {[%clk
0:01:13.5]} 21. Rd2 {[%clk 0:01:17.3]} 21... Rad8 {[%clk 0:01:07.5]} 22. Qe7
{[%clk 0:01:17.9]} 22... Nd5 {[%clk 0:01:01.6]} 23. Qxc5 {[%clk 0:01:09.8]}
23... Qxc5 {[%clk 0:00:58]} 24. Nxc5 {[%clk 0:01:10.7]} 24... Nxf4 {[%clk
0:00:58.1]} 25. exf4 {[%clk 0:00:35.8]} 25... Rxd2+ {[%clk 0:00:57.6]} 26. Ke3
{[%clk 0:00:36.4]} 26... Rc2 {[%clk 0:00:53.7]} 27. Ne4 {[%clk 0:00:32.2]} 27...
f5 {[%clk 0:00:51.7]} 28. Kd3 {[%clk 0:00:28.9]} 28... Rxa2 {[%clk 0:00:51.4]}
29. Nc3 {[%clk 0:00:28.2]} 29... Ra3 {[%clk 0:00:51.1]} 30. Kc4 {[%clk
0:00:23.5]} 30... Rc8+ {[%clk 0:00:51.1]} 31. Kb4 {[%clk 0:00:23.7]} 31... Raxc3
{[%clk 0:00:52]} 32. Rxc3 {[%clk 0:00:23.4]} 32... Rxc3 {[%clk 0:00:52.9]} 33.
Kxc3 {[%clk 0:00:24.2]} 33... f6 {[%clk 0:00:53]} 34. Kb4 {[%clk 0:00:25.1]}
34... e5 {[%clk 0:00:53.5]} 35. g3 {[%clk 0:00:23.9]} 35... e4 {[%clk
0:00:53.3]} 36. Kc4 {[%clk 0:00:23.8]} 36... a5 {[%clk 0:00:52.8]} 37. Kd4
{[%clk 0:00:24.2]} 37... a4 {[%clk 0:00:51.9]} 38. Kc3 {[%clk 0:00:25.1]} 38...
e3 {[%clk 0:00:51.4]} 0-1

[Event "Early-Titled-Tuesday-Blitz-April-16-2024"]
[Site "Chess.com"]
[Date "2024.04.16"]
[Round "11"]
[White "Alen_Yeremyann"]
[Black "Zohid6"]
[Result "0-1"]
[WhiteElo "2829"]
[BlackElo "2944"]
[TimeControl "180+1"]
[EndTime "10:11:03 PDT"]
[Termination "Zohid6 won on time"]

1. e4 {[%clk 0:02:58.5]} 1... e5 {[%clk 0:02:57.3]} 2. Nf3 {[%clk 0:02:57.5]}
2... Nf6 {[%clk 0:02:57.6]} 3. Nc3 {[%clk 0:02:55.8]} 3... Nc6 {[%clk
0:02:57.5]} 4. d4 {[%clk 0:02:56.1]} 4... exd4 {[%clk 0:02:58.4]} 5. Nxd4 {[%clk
0:02:56.7]} 5... Bb4 {[%clk 0:02:58.5]} 6. Nxc6 {[%clk 0:02:57]} 6... bxc6
{[%clk 0:02:59.4]} 7. Bd3 {[%clk 0:02:57.5]} 7... d5 {[%clk 0:02:58.7]} 8. exd5
{[%clk 0:02:58]} 8... O-O {[%clk 0:02:58.8]} 9. O-O {[%clk 0:02:58.8]} 9... cxd5
{[%clk 0:02:58.7]} 10. h3 {[%clk 0:02:59.5]} 10... c6 {[%clk 0:02:58.8]} 11. Qf3
{[%clk 0:03:00.2]} 11... Rb8 {[%clk 0:02:59]} 12. Bg5 {[%clk 0:02:58.7]} 12...
Bd6 {[%clk 0:02:56.2]} 13. Rab1 {[%clk 0:02:57.9]} 13... h6 {[%clk 0:02:55.4]}
14. Bf4 {[%clk 0:02:51.2]} 14... Rb4 {[%clk 0:02:54.4]} 15. Bxd6 {[%clk
0:02:51.1]} 15... Qxd6 {[%clk 0:02:55.3]} 16. b3 {[%clk 0:02:51.9]} 16... Rf4
{[%clk 0:02:54.3]} 17. Qg3 {[%clk 0:02:41.6]} 17... Nh5 {[%clk 0:02:54.2]} 18.
Qh2 {[%clk 0:02:34]} 18... Qf6 {[%clk 0:02:47.9]} 19. Ne2 {[%clk 0:02:25.1]}
19... Rh4 {[%clk 0:02:46.1]} 20. Rbe1 {[%clk 0:02:17.7]} 20... c5 {[%clk
0:02:41.4]} 21. f4 {[%clk 0:02:04.6]} 21... Qb6 {[%clk 0:02:30.7]} 22. c4 {[%clk
0:01:57.2]} 22... d4 {[%clk 0:02:26.2]} 23. f5 {[%clk 0:01:53.9]} 23... Qf6
{[%clk 0:02:10.4]} 24. Nf4 {[%clk 0:01:40.7]} 24... Bb7 {[%clk 0:02:08.6]} 25.
Nd5 {[%clk 0:01:28.8]} 25... Qg5 {[%clk 0:02:05.8]} 26. Rf3 {[%clk 0:01:13.9]}
26... Bxd5 {[%clk 0:01:36.8]} 27. cxd5 {[%clk 0:01:13.8]} 27... Nf4 {[%clk
0:01:37.3]} 28. d6 {[%clk 0:01:08.8]} 28... Nxd3 {[%clk 0:01:24.3]} 29. Rxd3
{[%clk 0:01:05.4]} 29... Qxf5 {[%clk 0:01:24.6]} 30. Rf3 {[%clk 0:01:04.3]}
30... Qd5 {[%clk 0:01:24.7]} 31. Qg3 {[%clk 0:00:54.6]} 31... Rh5 {[%clk
0:01:22.7]} 32. Re7 {[%clk 0:00:55.2]} 32... Rg5 {[%clk 0:01:21.6]} 33. Qf4
{[%clk 0:00:55.4]} 33... d3 {[%clk 0:01:20.1]} 34. d7 {[%clk 0:00:55.7]} 34...
d2 {[%clk 0:01:20.6]} 35. Kh2 {[%clk 0:00:17.3]} 35... d1=Q {[%clk 0:01:18.1]}
36. Re8 {[%clk 0:00:17.7]} 36... Qxd7 {[%clk 0:01:13.4]} 37. Rxf8+ {[%clk
0:00:17.6]} 37... Kxf8 {[%clk 0:01:14.3]} 38. Qb8+ {[%clk 0:00:17.3]} 38... Qd8
{[%clk 0:01:11.4]} 0-1

[Event "Early-Titled-Tuesday-Blitz-April-16-2024"]
[Site "Chess.com"]
[Date "2024.04.16"]
[Round "11"]
[White "atalz0"]
[Black "Durarbayli"]
[Result "0-1"]
[WhiteElo "2500"]
[BlackElo "2879"]
[TimeControl "180+1"]
[EndTime "10:11:03 PDT"]
[Termination "Durarbayli won by resignation"]

1. d4 {[%clk 0:03:00.9]} 1... Nf6 {[%clk 0:02:56.7]} 2. c4 {[%clk 0:03:01]} 2...
e6 {[%clk 0:02:57.3]} 3. Nc3 {[%clk 0:03:00.9]} 3... Bb4 {[%clk 0:02:57.6]} 4.
Qc2 {[%clk 0:03:00.7]} 4... c5 {[%clk 0:02:52.7]} 5. dxc5 {[%clk 0:03:00.5]}
5... Na6 {[%clk 0:02:51.7]} 6. a3 {[%clk 0:03:00.2]} 6... Bxc3+ {[%clk
0:02:51.8]} 7. Qxc3 {[%clk 0:03:01.1]} 7... Nxc5 {[%clk 0:02:52.1]} 8. b4 {[%clk
0:03:01.7]} 8... Nce4 {[%clk 0:02:52]} 9. Qb2 {[%clk 0:03:02]} 9... d5 {[%clk
0:02:51]} 10. c5 {[%clk 0:03:02.5]} 10... h6 {[%clk 0:02:27.7]} 11. f3 {[%clk
0:03:00.9]} 11... Ng5 {[%clk 0:02:27.7]} 12. Bf4 {[%clk 0:02:55.4]} 12... O-O
{[%clk 0:02:26.4]} 13. e3 {[%clk 0:02:55.2]} 13... Nd7 {[%clk 0:02:07.8]} 14.
Bd6 {[%clk 0:02:40.8]} 14... Re8 {[%clk 0:02:06.6]} 15. Bb5 {[%clk 0:02:00.3]}
15... a6 {[%clk 0:02:06]} 16. Ba4 {[%clk 0:02:00.5]} 16... b5 {[%clk 0:02:05.8]}
17. Bb3 {[%clk 0:01:53.3]} 17... Bb7 {[%clk 0:02:04.7]} 18. Ne2 {[%clk
0:01:52.4]} 18... f6 {[%clk 0:02:00.2]} 19. Rc1 {[%clk 0:01:40.2]} 19... Nf7
{[%clk 0:02:00.1]} 20. Bg3 {[%clk 0:01:36.1]} 20... Nde5 {[%clk 0:02:00.6]} 21.
Qd2 {[%clk 0:01:29]} 21... Nc4 {[%clk 0:02:00.7]} 22. Bxc4 {[%clk 0:01:28.9]}
22... bxc4 {[%clk 0:02:01.6]} 23. O-O {[%clk 0:01:23.4]} 23... Bc6 {[%clk
0:01:56.8]} 24. Nd4 {[%clk 0:01:11.3]} 24... Ba4 {[%clk 0:01:56.9]} 25. f4
{[%clk 0:01:07.4]} 25... Qd7 {[%clk 0:01:54.6]} 26. Qc3 {[%clk 0:00:49.3]} 26...
Rad8 {[%clk 0:01:53.2]} 27. f5 {[%clk 0:00:43.3]} 27... e5 {[%clk 0:01:53]} 28.
Ne6 {[%clk 0:00:43.3]} 28... Rxe6 {[%clk 0:01:53.7]} 29. fxe6 {[%clk 0:00:43.2]}
29... Qxe6 {[%clk 0:01:54.6]} 30. Rf2 {[%clk 0:00:39.1]} 30... Ng5 {[%clk
0:01:54]} 31. Qe1 {[%clk 0:00:18.6]} 31... Ne4 {[%clk 0:01:51.9]} 32. Rb2 {[%clk
0:00:18.8]} 32... f5 {[%clk 0:01:37.2]} 33. h3 {[%clk 0:00:16.7]} 33... d4
{[%clk 0:01:36.9]} 34. exd4 {[%clk 0:00:16.5]} 34... exd4 {[%clk 0:01:37.8]} 35.
Re2 {[%clk 0:00:13]} 35... c3 {[%clk 0:01:35.8]} 36. Bd6 {[%clk 0:00:11.9]}
36... Bb5 {[%clk 0:01:31.3]} 37. Rxe4 {[%clk 0:00:09.8]} 37... fxe4 {[%clk
0:01:30.8]} 38. Qh4 {[%clk 0:00:09.4]} 38... Re8 {[%clk 0:01:27.6]} 39. Qf2
{[%clk 0:00:07.9]} 39... Qd5 {[%clk 0:01:27.4]} 40. Rd1 {[%clk 0:00:05.4]} 40...
e3 {[%clk 0:01:27.5]} 41. Qg3 {[%clk 0:00:03]} 41... e2 {[%clk 0:01:17.8]} 42.
Re1 {[%clk 0:00:03.4]} 42... d3 {[%clk 0:01:18.3]} 43. Qg6 {[%clk 0:00:03.4]}
43... d2 {[%clk 0:01:13]} 0-1